[Event "*** Titled Tuesday Blitz"]
[Site "Chess.com"]
[Date "2021.03.16"]
[Round "3"]
[White "crazy_but_lazy"]
[Black "NoGuru"]
[Result "0-1"]
[WhiteElo "2470"]
[BlackElo "2296"]
[TimeControl "180+1"]
[EndTime "10:29:11 PDT"]
[Termination "NoGuru won by checkmate"]

1. e4 {[%clk 0:03:00.9]} 1... c6 {[%clk 0:02:59.9]} 2. d4 {[%clk 0:03:00.5]}
2... d5 {[%clk 0:03:00.6]} 3. exd5 {[%clk 0:03:01.4]} 3... cxd5 {[%clk
0:03:00.6]} 4. Bd3 {[%clk 0:03:01.9]} 4... Nc6 {[%clk 0:02:59.6]} 5. c3 {[%clk
0:03:02.2]} 5... Nf6 {[%clk 0:02:59.9]} 6. Bf4 {[%clk 0:03:01.5]} 6... Bg4
{[%clk 0:03:00.5]} 7. Qb3 {[%clk 0:03:01.7]} 7... Qd7 {[%clk 0:03:01.1]} 8. Nd2
{[%clk 0:03:01]} 8... e6 {[%clk 0:03:01.4]} 9. Ngf3 {[%clk 0:03:01.4]} 9... Bd6
{[%clk 0:03:02]} 10. Bxd6 {[%clk 0:03:00.8]} 10... Qxd6 {[%clk 0:03:02.3]} 11.
O-O {[%clk 0:03:01.1]} 11... O-O {[%clk 0:03:01.7]} 12. Rae1 {[%clk 0:03:00.1]}
12... Ne7 {[%clk 0:02:57.3]} 13. h3 {[%clk 0:02:57.7]} 13... Bf5 {[%clk
0:02:57.2]} 14. Bxf5 {[%clk 0:02:48.6]} 14... Nxf5 {[%clk 0:02:58.1]} 15. Ne5
{[%clk 0:02:48.9]} 15... b5 {[%clk 0:02:55.3]} 16. Nd3 {[%clk 0:02:19.7]} 16...
a5 {[%clk 0:02:53.2]} 17. a4 {[%clk 0:02:14.6]} 17... b4 {[%clk 0:02:47.1]} 18.
Nc5 {[%clk 0:02:04.3]} 18... Rab8 {[%clk 0:02:37]} 19. Qc2 {[%clk 0:01:52.2]}
19... bxc3 {[%clk 0:02:35.6]} 20. bxc3 {[%clk 0:01:53.1]} 20... Rfc8 {[%clk
0:02:31.3]} 21. Rb1 {[%clk 0:01:52]} 21... Qf4 {[%clk 0:02:17.8]} 22. Nf3 {[%clk
0:01:36.9]} 22... Ne4 {[%clk 0:01:59.8]} 23. Rxb8 {[%clk 0:01:28.3]} 23... Rxb8
{[%clk 0:01:57.3]} 24. Rb1 {[%clk 0:00:37.6]} 24... Rc8 {[%clk 0:00:46.6]} 25.
Rb5 {[%clk 0:00:17.2]} 25... Nxc5 {[%clk 0:00:31.9]} 26. Rxc5 {[%clk 0:00:18.1]}
26... Rxc5 {[%clk 0:00:31]} 27. dxc5 {[%clk 0:00:19]} 27... Qc7 {[%clk
0:00:30.6]} 28. Qb3 {[%clk 0:00:17.9]} 28... Qxc5 {[%clk 0:00:30.6]} 29. Qb8+
{[%clk 0:00:17.7]} 29... Qf8 {[%clk 0:00:30.4]} 30. Qb6 {[%clk 0:00:18.5]} 30...
g6 {[%clk 0:00:24.8]} 31. Ne5 {[%clk 0:00:18.6]} 31... Qd6 {[%clk 0:00:21.9]}
32. Qxd6 {[%clk 0:00:14.7]} 32... Nxd6 {[%clk 0:00:19.4]} 33. f3 {[%clk
0:00:13.7]} 33... Kg7 {[%clk 0:00:16.5]} 34. Nd7 {[%clk 0:00:11.5]} 34... Nc4
{[%clk 0:00:14.5]} 35. Kf2 {[%clk 0:00:10.1]} 35... f6 {[%clk 0:00:14.2]} 36. g4
{[%clk 0:00:05.9]} 36... Kf7 {[%clk 0:00:14.3]} 37. Nc5 {[%clk 0:00:05.9]} 37...
Ke7 {[%clk 0:00:12.9]} 38. Nb7 {[%clk 0:00:06.5]} 38... Nb2 {[%clk 0:00:12.8]}
39. Nxa5 {[%clk 0:00:06.1]} 39... Nxa4 {[%clk 0:00:12.8]} 40. c4 {[%clk
0:00:06.9]} 40... d4 {[%clk 0:00:12]} 41. Ke2 {[%clk 0:00:06.9]} 41... e5 {[%clk
0:00:12.1]} 42. Nb3 {[%clk 0:00:04.3]} 42... Kd6 {[%clk 0:00:11.5]} 43. Kd3
{[%clk 0:00:04.7]} 43... Nc5+ {[%clk 0:00:11.5]} 44. Nxc5 {[%clk 0:00:05.1]}
44... Kxc5 {[%clk 0:00:11.9]} 45. h4 {[%clk 0:00:05.7]} 45... f5 {[%clk
0:00:11.6]} 46. h5 {[%clk 0:00:05.8]} 46... e4+ {[%clk 0:00:10.5]} 47. fxe4
{[%clk 0:00:05.9]} 47... fxe4+ {[%clk 0:00:10.9]} 48. Kxe4 {[%clk 0:00:06]}
48... Kxc4 {[%clk 0:00:11.3]} 49. hxg6 {[%clk 0:00:05.9]} 49... hxg6 {[%clk
0:00:10.5]} 50. Ke5 {[%clk 0:00:06.8]} 50... d3 {[%clk 0:00:10.8]} 51. Kf6
{[%clk 0:00:07.7]} 51... d2 {[%clk 0:00:11.5]} 52. Kxg6 {[%clk 0:00:08.6]} 52...
d1=Q {[%clk 0:00:12.2]} 53. g5 {[%clk 0:00:09.4]} 53... Qd7 {[%clk 0:00:12]} 54.
Kf6 {[%clk 0:00:09.3]} 54... Kd5 {[%clk 0:00:12.1]} 55. g6 {[%clk 0:00:10.2]}
55... Qe6+ {[%clk 0:00:11.7]} 56. Kg7 {[%clk 0:00:11.1]} 56... Qe7+ {[%clk
0:00:11.8]} 57. Kh8 {[%clk 0:00:11.9]} 57... Ke6 {[%clk 0:00:11.5]} 58. g7
{[%clk 0:00:12.4]} 58... Qh4+ {[%clk 0:00:05.9]} 59. Kg8 {[%clk 0:00:12.6]}
59... Kf6 {[%clk 0:00:06.1]} 60. Kf8 {[%clk 0:00:12.8]} 60... Qb4+ {[%clk
0:00:05.8]} 61. Kg8 {[%clk 0:00:12.9]} 61... Qb8+ {[%clk 0:00:05.7]} 62. Kh7
{[%clk 0:00:13.4]} 62... Qc7 {[%clk 0:00:05.8]} 63. Kh6 {[%clk 0:00:14.1]} 63...
Qxg7+ {[%clk 0:00:05.8]} 64. Kh5 {[%clk 0:00:15]} 64... Qg5# {[%clk 0:00:06.5]}
0-1

[Event "*** Titled Tuesday Blitz"]
[Site "Chess.com"]
[Date "2021.03.16"]
[Round "3"]
[White "Unknown_IM"]
[Black "VladaSviridova"]
[Result "1-0"]
[WhiteElo "2401"]
[BlackElo "2219"]
[TimeControl "180+1"]
[EndTime "10:29:15 PDT"]
[Termination "Unknown_IM won by resignation"]

1. e4 {[%clk 0:03:00.9]} 1... e6 {[%clk 0:02:59]} 2. d4 {[%clk 0:03:00]} 2... d5
{[%clk 0:02:59.3]} 3. Bd3 {[%clk 0:02:59.8]} 3... dxe4 {[%clk 0:02:58.3]} 4.
Bxe4 {[%clk 0:03:00.7]} 4... Nf6 {[%clk 0:02:58.3]} 5. Bf3 {[%clk 0:02:59.2]}
5... c5 {[%clk 0:02:58.9]} 6. Ne2 {[%clk 0:02:56.7]} 6... Be7 {[%clk 0:02:58.7]}
7. O-O {[%clk 0:02:53.4]} 7... O-O {[%clk 0:02:58.3]} 8. Be3 {[%clk 0:02:52.3]}
8... Qc7 {[%clk 0:02:57.9]} 9. Nbc3 {[%clk 0:02:50.3]} 9... a6 {[%clk
0:02:49.4]} 10. Qe1 {[%clk 0:02:37.2]} 10... Nc6 {[%clk 0:02:19.9]} 11. Rd1
{[%clk 0:02:23.2]} 11... cxd4 {[%clk 0:02:11.2]} 12. Nxd4 {[%clk 0:02:24.1]}
12... Ne5 {[%clk 0:02:04.2]} 13. Be2 {[%clk 0:02:13.8]} 13... Neg4 {[%clk
0:01:49.7]} 14. Bxg4 {[%clk 0:02:00.5]} 14... Nxg4 {[%clk 0:01:49.7]} 15. Nf3
{[%clk 0:02:01.4]} 15... Nxe3 {[%clk 0:01:42]} 16. Qxe3 {[%clk 0:02:02.3]} 16...
b5 {[%clk 0:01:33.8]} 17. Qe5 {[%clk 0:02:01.1]} 17... Qxe5 {[%clk 0:01:26]} 18.
Nxe5 {[%clk 0:02:00.3]} 18... Bf6 {[%clk 0:01:26]} 19. Rfe1 {[%clk 0:01:52.4]}
19... Bxe5 {[%clk 0:01:04]} 20. Rxe5 {[%clk 0:01:53.3]} 20... Bb7 {[%clk
0:01:04.4]} 21. Rd7 {[%clk 0:01:52.1]} 21... Bc6 {[%clk 0:01:02.7]} 22. Rd6
{[%clk 0:01:42.8]} 22... Rac8 {[%clk 0:00:55.7]} 23. a3 {[%clk 0:01:12.5]} 23...
h6 {[%clk 0:00:42.8]} 24. f3 {[%clk 0:00:52.7]} 24... Rfd8 {[%clk 0:00:42.1]}
25. Rxd8+ {[%clk 0:00:49.3]} 25... Rxd8 {[%clk 0:00:43]} 26. Rc5 {[%clk
0:00:49.2]} 26... Rd6 {[%clk 0:00:43]} 27. Kf1 {[%clk 0:00:45.9]} 27... f5
{[%clk 0:00:42.6]} 28. Ke2 {[%clk 0:00:45.2]} 28... Kf7 {[%clk 0:00:43.1]} 29.
Na2 {[%clk 0:00:42.4]} 29... a5 {[%clk 0:00:35.4]} 30. Nc3 {[%clk 0:00:29.8]}
30... b4 {[%clk 0:00:31.4]} 31. axb4 {[%clk 0:00:29.4]} 31... axb4 {[%clk
0:00:31.5]} 32. Na2 {[%clk 0:00:29.3]} 32... b3 {[%clk 0:00:25.3]} 33. Nb4
{[%clk 0:00:27.5]} 33... Bd5 {[%clk 0:00:17.3]} 34. Nxd5 {[%clk 0:00:25.4]}
34... exd5 {[%clk 0:00:11.5]} 35. cxb3 {[%clk 0:00:18.1]} 35... Ke6 {[%clk
0:00:11.6]} 36. Kd3 {[%clk 0:00:17.8]} 36... Rb6 {[%clk 0:00:10.5]} 37. Kc3
{[%clk 0:00:17.8]} 37... d4+ {[%clk 0:00:09.9]} 38. Kc4 {[%clk 0:00:17.4]} 38...
d3 {[%clk 0:00:10.3]} 39. f4 {[%clk 0:00:17.5]} 39... d2 {[%clk 0:00:10]} 40.
Re5+ {[%clk 0:00:17.7]} 40... Kf6 {[%clk 0:00:08.5]} 41. Rd5 {[%clk 0:00:18]}
41... g5 {[%clk 0:00:07]} 42. fxg5+ {[%clk 0:00:17.5]} 42... hxg5 {[%clk
0:00:06.9]} 43. Rxd2 {[%clk 0:00:18.4]} 43... f4 {[%clk 0:00:06.8]} 44. b4
{[%clk 0:00:18.6]} 44... Ke5 {[%clk 0:00:06.4]} 45. Kc5 {[%clk 0:00:18.4]} 45...
Rb8 {[%clk 0:00:05.9]} 46. Re2+ {[%clk 0:00:18.8]} 46... Kf5 {[%clk 0:00:05.9]}
47. b5 {[%clk 0:00:18.9]} 47... g4 {[%clk 0:00:06.4]} 48. b6 {[%clk 0:00:18.8]}
48... f3 {[%clk 0:00:06.7]} 49. gxf3 {[%clk 0:00:19.2]} 49... gxf3 {[%clk
0:00:07.6]} 50. Rf2 {[%clk 0:00:18.7]} 50... Ke4 {[%clk 0:00:07.6]} 51. Kc6
{[%clk 0:00:19.2]} 51... Ke3 {[%clk 0:00:07.9]} 52. Rxf3+ {[%clk 0:00:19.4]}
52... Kxf3 {[%clk 0:00:08.3]} 53. Kc7 {[%clk 0:00:20.3]} 53... Rh8 {[%clk
0:00:08.5]} 54. b7 {[%clk 0:00:20.6]} 54... Rh7+ {[%clk 0:00:09]} 55. Kc8 {[%clk
0:00:20.7]} 55... Rh8+ {[%clk 0:00:09.4]} 56. Kc7 {[%clk 0:00:21.2]} 56... Rh7+
{[%clk 0:00:10.1]} 57. Kb6 {[%clk 0:00:21.7]} 57... Rh6+ {[%clk 0:00:10.4]} 58.
Ka7 {[%clk 0:00:21.9]} 58... Rh7 {[%clk 0:00:07.2]} 59. Ka8 {[%clk 0:00:21.9]}
59... Rxh2 {[%clk 0:00:03.2]} 60. b8=Q {[%clk 0:00:21.5]} 60... Re2 {[%clk
0:00:01.6]} 61. Qf8+ {[%clk 0:00:19.5]} 61... Ke3 {[%clk 0:00:01.4]} 62. Qe8+
{[%clk 0:00:19.6]} 62... Kd2 {[%clk 0:00:01.7]} 63. Qxe2+ {[%clk 0:00:19.3]}
63... Kxe2 {[%clk 0:00:02.1]} 64. b4 {[%clk 0:00:19.9]} 64... Kd3 {[%clk
0:00:02.8]} 65. b5 {[%clk 0:00:20.8]} 65... Kc4 {[%clk 0:00:02.5]} 66. b6 {[%clk
0:00:21.7]} 1-0

[Event "*** Titled Tuesday Blitz"]
[Site "Chess.com"]
[Date "2021.03.16"]
[Round "3"]
[White "Paladin61"]
[Black "MagzyPotato"]
[Result "1-0"]
[WhiteElo "2769"]
[BlackElo "2368"]
[TimeControl "180+1"]
[EndTime "10:29:21 PDT"]
[Termination "Paladin61 won by resignation"]

1. b3 {[%clk 0:02:59.9]} 1... e5 {[%clk 0:03:00]} 2. Bb2 {[%clk 0:03:00]} 2...
Nc6 {[%clk 0:03:00.7]} 3. e3 {[%clk 0:03:00.4]} 3... Nf6 {[%clk 0:03:01.4]} 4.
Bb5 {[%clk 0:03:00.2]} 4... e4 {[%clk 0:03:02.1]} 5. f3 {[%clk 0:02:52.4]} 5...
a6 {[%clk 0:03:02]} 6. Bxc6 {[%clk 0:02:51.3]} 6... dxc6 {[%clk 0:03:02.9]} 7.
Nc3 {[%clk 0:02:51.6]} 7... Bd6 {[%clk 0:02:54.4]} 8. fxe4 {[%clk 0:02:45.7]}
8... O-O {[%clk 0:02:46]} 9. Nf3 {[%clk 0:02:44.1]} 9... Re8 {[%clk 0:02:44.9]}
10. d3 {[%clk 0:02:41.6]} 10... Ng4 {[%clk 0:02:39.6]} 11. Qd2 {[%clk
0:02:31.6]} 11... Bc5 {[%clk 0:02:17.7]} 12. Nd1 {[%clk 0:02:23.1]} 12... f5
{[%clk 0:02:16.6]} 13. e5 {[%clk 0:01:55.4]} 13... Be6 {[%clk 0:01:53.2]} 14. h3
{[%clk 0:01:48.6]} 14... Nh6 {[%clk 0:01:49.4]} 15. Nc3 {[%clk 0:01:44.1]} 15...
f4 {[%clk 0:01:40.6]} 16. exf4 {[%clk 0:01:27.9]} 16... Nf5 {[%clk 0:01:40.2]}
17. Nd1 {[%clk 0:01:21.3]} 17... Bd5 {[%clk 0:01:30.3]} 18. Rf1 {[%clk
0:00:44.7]} 18... Ng3 {[%clk 0:01:11.8]} 19. Rf2 {[%clk 0:00:44.6]} 19... Bxf2+
{[%clk 0:00:40.8]} 20. Qxf2 {[%clk 0:00:45.5]} 20... Nh1 {[%clk 0:00:36.4]} 21.
Qe3 {[%clk 0:00:36.5]} 21... Ng3 {[%clk 0:00:29.9]} 22. Nc3 {[%clk 0:00:33.7]}
22... Nf5 {[%clk 0:00:29]} 23. Qf2 {[%clk 0:00:33.6]} 23... Bxf3 {[%clk
0:00:29.3]} 24. Qxf3 {[%clk 0:00:30]} 24... Qh4+ {[%clk 0:00:29.3]} 25. Kd2
{[%clk 0:00:23.8]} 25... Nd4 {[%clk 0:00:28.3]} 26. Qe3 {[%clk 0:00:22.1]} 26...
Nf5 {[%clk 0:00:26.9]} 27. Qf3 {[%clk 0:00:17.4]} 27... Nd4 {[%clk 0:00:27.1]}
28. Qe3 {[%clk 0:00:08.7]} 28... Nf5 {[%clk 0:00:26]} 29. Qe4 {[%clk 0:00:08.6]}
29... Qf2+ {[%clk 0:00:24.1]} 30. Ne2 {[%clk 0:00:06.8]} 30... Ng3 {[%clk
0:00:24.5]} 31. Qe3 {[%clk 0:00:05]} 31... Qxg2 {[%clk 0:00:20.2]} 32. Qxg3
{[%clk 0:00:05]} 32... Qd5 {[%clk 0:00:20.5]} 33. Rg1 {[%clk 0:00:04.8]} 33...
g6 {[%clk 0:00:20.8]} 34. c4 {[%clk 0:00:04.7]} 34... Qe6 {[%clk 0:00:19.8]} 35.
Nd4 {[%clk 0:00:04.6]} 35... Qf7 {[%clk 0:00:19.9]} 36. f5 {[%clk 0:00:05]}
36... Rad8 {[%clk 0:00:17.1]} 37. fxg6 {[%clk 0:00:04.9]} 37... hxg6 {[%clk
0:00:18]} 38. Qxg6+ {[%clk 0:00:05.2]} 38... Qxg6 {[%clk 0:00:18.9]} 39. Rxg6+
{[%clk 0:00:05.8]} 39... Kf7 {[%clk 0:00:19.8]} 40. Rf6+ {[%clk 0:00:06]} 40...
Ke7 {[%clk 0:00:20.7]} 41. Nf5+ {[%clk 0:00:06.6]} 41... Kd7 {[%clk 0:00:21.6]}
42. Rf7+ {[%clk 0:00:07]} 42... Kc8 {[%clk 0:00:21.4]} 43. d4 {[%clk 0:00:06.6]}
43... Rh8 {[%clk 0:00:22]} 44. h4 {[%clk 0:00:06]} 44... Rdg8 {[%clk 0:00:22.1]}
45. Kc3 {[%clk 0:00:04.8]} 45... Rg2 {[%clk 0:00:19]} 46. Ba3 {[%clk 0:00:03.5]}
46... b6 {[%clk 0:00:19.1]} 47. Be7 {[%clk 0:00:03.5]} 47... Rh5 {[%clk
0:00:18.4]} 48. Bg5 {[%clk 0:00:03.7]} 48... Kb8 {[%clk 0:00:17.5]} 49. Ne7
{[%clk 0:00:03.2]} 49... Kb7 {[%clk 0:00:15.9]} 50. d5 {[%clk 0:00:03.4]} 50...
cxd5 {[%clk 0:00:16.1]} 51. Nxd5 {[%clk 0:00:03.4]} 51... Rg3+ {[%clk 0:00:17]}
52. Kd4 {[%clk 0:00:03.4]} 52... Rg4+ {[%clk 0:00:16.9]} 53. Ke3 {[%clk
0:00:03.7]} 53... Rg3+ {[%clk 0:00:17.4]} 54. Kf2 {[%clk 0:00:04.1]} 54... Rgxg5
{[%clk 0:00:17.9]} 55. hxg5 {[%clk 0:00:03.9]} 55... Rxg5 {[%clk 0:00:18.8]} 56.
Rxc7+ {[%clk 0:00:04.1]} 56... Kb8 {[%clk 0:00:19.7]} 57. Re7 {[%clk 0:00:04.6]}
57... b5 {[%clk 0:00:19.8]} 58. cxb5 {[%clk 0:00:04.6]} 58... axb5 {[%clk
0:00:20.7]} 59. Ke3 {[%clk 0:00:05.2]} 59... Rg2 {[%clk 0:00:20.6]} 60. a4
{[%clk 0:00:04.9]} 60... bxa4 {[%clk 0:00:21]} 61. bxa4 {[%clk 0:00:05.8]} 61...
Ra2 {[%clk 0:00:21.9]} 62. Nc3 {[%clk 0:00:05.8]} 62... Ra3 {[%clk 0:00:22.5]}
63. Kd4 {[%clk 0:00:06.3]} 63... Ra1 {[%clk 0:00:23.4]} 64. e6 {[%clk
0:00:06.7]} 64... Kc8 {[%clk 0:00:24.3]} 65. Ra7 {[%clk 0:00:06.3]} 65... Kd8
{[%clk 0:00:25.2]} 66. e7+ {[%clk 0:00:06.6]} 66... Ke8 {[%clk 0:00:25.3]} 67.
Nd5 {[%clk 0:00:06.6]} 67... Rd1+ {[%clk 0:00:25.9]} 68. Kc5 {[%clk 0:00:06.6]}
68... Rc1+ {[%clk 0:00:26]} 69. Kd6 {[%clk 0:00:05.8]} 69... Rd1 {[%clk
0:00:26.7]} 70. Ra8+ {[%clk 0:00:05.8]} 1-0

[Event "*** Titled Tuesday Blitz"]
[Site "Chess.com"]
[Date "2021.03.16"]
[Round "3"]
[White "ukchessbomber"]
[Black "lukazz029"]
[Result "1/2-1/2"]
[WhiteElo "2517"]
[BlackElo "2226"]
[TimeControl "180+1"]
[EndTime "10:29:22 PDT"]
[Termination "Game drawn by repetition"]

1. d4 {[%clk 0:03:00.9]} 1... Nf6 {[%clk 0:02:59.3]} 2. c4 {[%clk 0:03:01.4]}
2... g6 {[%clk 0:02:57.7]} 3. Nc3 {[%clk 0:03:01.9]} 3... Bg7 {[%clk 0:02:58.1]}
4. e4 {[%clk 0:03:02.4]} 4... d6 {[%clk 0:02:58.5]} 5. Be2 {[%clk 0:03:03.1]}
5... O-O {[%clk 0:02:59]} 6. Be3 {[%clk 0:03:03.8]} 6... e5 {[%clk 0:02:59.2]}
7. d5 {[%clk 0:03:04.3]} 7... a5 {[%clk 0:02:59.1]} 8. g4 {[%clk 0:03:04.8]}
8... Nfd7 {[%clk 0:02:57]} 9. g5 {[%clk 0:03:04.9]} 9... f5 {[%clk 0:02:54.5]}
10. gxf6 {[%clk 0:03:05.8]} 10... Nxf6 {[%clk 0:02:53.2]} 11. h4 {[%clk
0:03:06.2]} 11... h6 {[%clk 0:02:39.4]} 12. Qd2 {[%clk 0:03:03.3]} 12... Kh7
{[%clk 0:02:38.9]} 13. h5 {[%clk 0:02:58.8]} 13... g5 {[%clk 0:02:38]} 14. Bxg5
{[%clk 0:02:51.7]} 14... hxg5 {[%clk 0:02:36.4]} 15. Qxg5 {[%clk 0:02:52.6]}
15... Qe8 {[%clk 0:02:21.3]} 16. Nf3 {[%clk 0:02:45.1]} 16... Bh6 {[%clk
0:02:19]} 17. Qh4 {[%clk 0:02:44.9]} 17... Qf7 {[%clk 0:01:51.2]} 18. Kd1 {[%clk
0:02:32.1]} 18... Rg8 {[%clk 0:01:42.8]} 19. Kc2 {[%clk 0:02:30]} 19... Na6
{[%clk 0:01:41.9]} 20. Rag1 {[%clk 0:02:27.4]} 20... Bd7 {[%clk 0:01:37.9]} 21.
Rg6 {[%clk 0:02:13.6]} 21... Rxg6 {[%clk 0:00:58.7]} 22. hxg6+ {[%clk
0:02:13.5]} 22... Qxg6 {[%clk 0:00:59.6]} 23. Rg1 {[%clk 0:02:13.8]} 23... Ng4
{[%clk 0:00:52.2]} 24. Kb1 {[%clk 0:01:47.4]} 24... Rg8 {[%clk 0:00:47.6]} 25.
Nh2 {[%clk 0:01:44]} 25... Qg5 {[%clk 0:00:45]} 26. Qxg5 {[%clk 0:01:42.3]}
26... Rxg5 {[%clk 0:00:44.2]} 27. Bxg4 {[%clk 0:01:41.5]} 27... Bxg4 {[%clk
0:00:44.3]} 28. Nxg4 {[%clk 0:01:38.9]} 28... Bg7 {[%clk 0:00:35.6]} 29. Ne2
{[%clk 0:01:35.8]} 29... Nc5 {[%clk 0:00:34]} 30. f3 {[%clk 0:01:32.1]} 30...
Kg8 {[%clk 0:00:29.7]} 31. Ne3 {[%clk 0:01:28.7]} 31... Rxg1+ {[%clk 0:00:29]}
32. Nxg1 {[%clk 0:01:29.6]} 32... Nd3 {[%clk 0:00:28.9]} 33. Kc2 {[%clk
0:01:26.2]} 33... Nf4 {[%clk 0:00:25.1]} 34. a3 {[%clk 0:01:19.9]} 34... Kf7
{[%clk 0:00:23.4]} 35. b4 {[%clk 0:01:16]} 35... axb4 {[%clk 0:00:24.3]} 36.
axb4 {[%clk 0:01:16.9]} 36... Bf6 {[%clk 0:00:24.7]} 37. Nf5 {[%clk 0:01:02.5]}
37... Bg5 {[%clk 0:00:24.5]} 38. Ng3 {[%clk 0:00:44]} 38... Be7 {[%clk
0:00:23.6]} 39. N1e2 {[%clk 0:00:43.5]} 39... Ng2 {[%clk 0:00:21.5]} 40. Nf5
{[%clk 0:00:42.7]} 40... Ne1+ {[%clk 0:00:21.1]} 41. Kb3 {[%clk 0:00:36.9]}
41... Nxf3 {[%clk 0:00:22]} 42. Ka4 {[%clk 0:00:34.4]} 42... Ng5 {[%clk
0:00:22.1]} 43. Nc3 {[%clk 0:00:33.5]} 43... Kf6 {[%clk 0:00:22.4]} 44. Nh6
{[%clk 0:00:20.5]} 44... Nf3 {[%clk 0:00:22.1]} 45. Ng8+ {[%clk 0:00:19.7]}
45... Kf7 {[%clk 0:00:22.5]} 46. Nh6+ {[%clk 0:00:20.2]} 46... Kg6 {[%clk
0:00:22.6]} 47. Nf5 {[%clk 0:00:20]} 47... Kf6 {[%clk 0:00:23.1]} 48. Nb5 {[%clk
0:00:17.4]} 48... Bd8 {[%clk 0:00:21.2]} 49. c5 {[%clk 0:00:16.5]} 49... Nd2
{[%clk 0:00:19.3]} 50. Nc3 {[%clk 0:00:15.6]} 50... Nxe4 {[%clk 0:00:18.9]} 51.
Nxe4+ {[%clk 0:00:09.1]} 51... Kxf5 {[%clk 0:00:19.2]} 52. Nc3 {[%clk
0:00:09.4]} 52... e4 {[%clk 0:00:19.3]} 53. Kb3 {[%clk 0:00:09.1]} 53... e3
{[%clk 0:00:18.9]} 54. Kc4 {[%clk 0:00:09.7]} 54... Kf4 {[%clk 0:00:18.7]} 55.
Kd3 {[%clk 0:00:09.5]} 55... Bf6 {[%clk 0:00:18.6]} 56. Ne2+ {[%clk 0:00:08.3]}
56... Kf3 {[%clk 0:00:18.2]} 57. c6 {[%clk 0:00:08.8]} 57... b6 {[%clk
0:00:17.9]} 58. b5 {[%clk 0:00:08.7]} 58... Be5 {[%clk 0:00:18]} 59. Nc1 {[%clk
0:00:08.9]} 59... Kf2 {[%clk 0:00:17.7]} 60. Ne2 {[%clk 0:00:08.9]} 60... Bh2
{[%clk 0:00:17.7]} 61. Nd4 {[%clk 0:00:08.4]} 61... Be5 {[%clk 0:00:18.2]} 62.
Ne2 {[%clk 0:00:08.8]} 62... Bf6 {[%clk 0:00:18]} 63. Nc1 {[%clk 0:00:08.5]}
63... Bb2 {[%clk 0:00:18.5]} 64. Ne2 {[%clk 0:00:09.4]} 64... Ba3 {[%clk
0:00:17.8]} 65. Nf4 {[%clk 0:00:09.5]} 65... Bc5 {[%clk 0:00:16.7]} 66. Ne2
{[%clk 0:00:10.4]} 66... Ba3 {[%clk 0:00:17.2]} 67. Nd4 {[%clk 0:00:09.9]} 67...
Bb2 {[%clk 0:00:17.3]} 68. Ne2 {[%clk 0:00:09]} 68... Be5 {[%clk 0:00:17.5]} 69.
Nc1 {[%clk 0:00:08.3]} 69... Bf6 {[%clk 0:00:17.7]} 70. Ne2 {[%clk 0:00:07.3]}
70... Be5 {[%clk 0:00:18]} 71. Nc1 {[%clk 0:00:07.9]} 71... Bb2 {[%clk
0:00:15.5]} 72. Ne2 {[%clk 0:00:08.1]} 1/2-1/2